bitfinex/quotes_SOLUSD_20251103
["timestamp","ask_amount","ask_price","bid_price","bid_amount"]
[1762210533005,33.40313903,165.98,165.97,0.2]
[1762210533204,30.38082769,165.98,165.97,0.2]
[1762210533417,6.02409638,166.0,165.97,0.2]
[1762210533629,6.02409638,166.0,165.98,0.66]
[1762210535316,6.02409638,166.0,165.97,0.2]
[1762210535514,6.02409638,166.0,165.97,0.86]
[1762210535912,6.02409638,166.0,165.98,0.66]
[1762210536923,6.02409638,166.0,165.97,0.2]
[1762210537230,6.02409638,166.0,165.97,0.86]
[1762210538830,48.32409638,166.0,165.97,0.86]
[1762210539129,48.32409638,166.0,165.98,0.66]
[1762210539510,48.32409638,166.0,165.97,0.2]
[1762210539706,48.32409638,166.0,165.97,0.86]
[1762210541708,48.32409638,166.0,165.97,0.2]
[1762210541916,48.32409638,166.0,165.98,0.66]
[1762210542732,48.32409638,166.0,165.97,0.2]
[1762210542933,48.32409638,166.0,165.97,0.86]
[1762210543310,48.32409638,166.0,165.97,0.2]
[1762210544724,48.32409638,166.0,165.97,0.86]
[1762210545111,48.32409638,166.0,165.97,0.2]
[1762210545331,48.32409638,166.0,165.98,0.66]
[1762210545652,48.32409638,166.0,165.97,0.86]
[1762210545928,4.02134724,165.99,165.97,0.86]
[1762210546519,6.02482226,165.98,165.97,0.86]
[1762210546910,6.02482226,165.98,165.97,0.2]
[1762210547331,18.83596129,165.98,165.97,0.2]
[1762210547542,22.85730853,165.98,165.97,0.2]
[1762210547914,22.9994701,165.98,165.97,1e-08]
[1762210548146,19.97715876,165.98,165.97,1e-08]
[1762210548437,22.9994701,165.98,165.97,1e-08]
[1762210548731,30.38082769,165.95,165.94,0.2]
[1762210548935,37.42448627,165.95,165.94,0.2]
[1762210549652,9.93098926,165.94,165.93,0.2]
[1762210549824,16.97464784,165.94,165.93,0.2]
[1762210550827,30.52298926,165.92,165.91,1e-08]
[1762210551026,30.52298926,165.92,165.89,0.2]
[1762210551027,0.14216157,165.9,165.89,0.2]
[1762210551228,12.81113903,165.87,165.86,0.2]
[1762210551837,16.82964903,165.87,165.86,0.2]
[1762210552015,16.9718106,165.87,165.86,0.2]
[1762210552442,9.78882769,165.83,165.8,0.86]
[1762210552658,6.03063562,165.82,165.8,0.86]
[1762210552819,6.03063562,165.82,165.81,0.66]
[1762210553148,9.78882769,165.83,165.81,0.66]
[1762210553149,15.81920886,165.83,165.81,0.66]
[1762210553327,15.81920886,165.83,165.8,0.2]
[1762210553328,30.89488877,165.83,165.8,0.2]
[1762210553530,33.91720011,165.83,165.8,0.2]
[1762210553933,9.78882769,165.81,165.8,0.2]
[1762210554324,3.02231134,165.81,165.8,0.2]
[1762210554824,9.05331067,165.81,165.8,0.2]
[1762210555026,6.03099933,165.81,165.8,0.2]
[1762210555322,6.03099933,165.81,165.8,0.86]
[1762210556055,18.09799125,165.83,165.8,0.86]
[1762210556056,15.81918668,165.83,165.8,0.86]
[1762210556220,15.8184637,165.85,165.81,0.66]
[1762210556734,15.8184637,165.85,165.8,0.2]
[1762210556735,9.78882769,165.82,165.8,0.2]
[1762210557733,6.03099933,165.81,165.8,0.2]
[1762210561136,6.03099933,165.81,165.8,0.86]
[1762210561525,6.03099933,165.81,165.8,0.2]
[1762210561728,6.03099933,165.81,165.8,0.86]
[1762210562557,9.78882769,165.81,165.8,0.86]
[1762210563644,15.81982702,165.81,165.8,0.86]
[1762210564153,9.78882769,165.81,165.8,0.2]
[1762210564353,15.81982702,165.81,165.8,0.2]
[1762210565052,9.78882769,165.81,165.8,0.92]
[1762210565258,9.78882769,165.83,165.8,0.92]
[1762210565449,15.81909965,165.83,165.81,0.72]
[1762210565650,9.78882769,165.83,165.81,0.72]
[1762210566746,6.02965652,165.85,165.81,0.72]
[1762210566959,15.81812736,165.86,165.81,0.72]
[1762210567474,9.78882769,165.86,165.81,0.72]
[1762210567645,9.78882769,165.86,165.81,6.75090632]
[1762210567847,9.78882769,165.89,165.81,6.75090632]
[1762210568043,34.37764238,165.89,165.82,0.72]
[1762210568243,30.38082769,165.89,165.82,0.72]
[1762210568439,9.78882769,165.89,165.82,0.72]
[1762210568761,36.40891859,165.89,165.82,6.75039706]
[1762210569057,3.99836659,165.88,165.82,6.75039706]
[1762210569257,3.99836659,165.88,165.83,0.72]
[1762210570333,6.02881774,165.87,165.83,0.72]
[1762210570737,10.02707615,165.88,165.83,0.72]
[1762210570940,10.02712084,165.88,165.83,0.72]
[1762210572152,13.04943218,165.88,165.83,0.72]
[1762210572353,10.02712084,165.88,165.83,0.72]
[1762210572535,13.04943218,165.88,165.83,0.72]
[1762210575341,3.99836659,165.87,165.83,0.72]
[1762210576657,6.02918123,165.86,165.83,0.72]
[1762210576959,3.99836659,165.87,165.83,0.72]
[1762210577443,10.02731078,165.87,165.83,0.72]
[1762210579270,3.99836659,165.87,165.83,0.72]
[1762210579647,10.02739156,165.87,165.83,0.72]
[1762210580543,6.02902497,165.87,165.83,0.72]
[1762210580759,10.02739156,165.87,165.83,0.72]
[1762210580972,6.02902497,165.87,165.83,0.72]
[1762210581148,3.99836659,165.87,165.83,0.72]
[1762210581348,10.02720423,165.87,165.83,0.72]
[1762210581562,6.02883764,165.87,165.83,0.72]
[1762210581762,10.02720423,165.87,165.83,0.72]
[1762210581968,6.02883764,165.87,165.83,0.72]
[1762210582266,10.02720423,165.87,165.83,0.72]
[1762210582479,6.02883764,165.87,165.83,0.72]
[1762210582770,10.02720423,165.87,165.83,0.72]
[1762210583070,6.02883764,165.87,165.83,0.72]
[1762210583369,10.02720423,165.87,165.83,0.72]
[1762210583572,6.02883764,165.87,165.83,0.72]
[1762210583871,10.02720423,165.87,165.83,0.72]
[1762210585058,25.0992486,165.87,165.83,0.72]
[1762210585256,6.02954476,165.85,165.83,0.72]
[1762210587977,3.99836659,165.84,165.81,0.72]
[1762210588450,6.03027196,165.83,165.81,0.72]
[1762210589365,3.99836659,165.82,165.81,0.72]
[1762210589574,6.03027196,165.83,165.81,0.72]
[1762210589744,10.02863855,165.83,165.81,0.72]
[1762210589947,3.99836659,165.82,165.81,0.72]
[1762210590169,6.03027196,165.83,165.81,0.72]
[1762210590374,3.99836659,165.82,165.81,0.72]
[1762210598693,10.02900221,165.82,165.81,0.72]
[1762210605991,10.02900221,165.82,165.8,0.2]
[1762210606170,3.99836659,165.81,165.8,0.2]
[1762210606875,10.02936592,165.81,165.8,0.2]
[1762210607080,10.02936592,165.81,165.8,0.92]
[1762210610377,3.99836659,165.81,165.8,0.92]
[1762210616579,4.06756471,165.81,165.8,0.92]
[1762210622300,10.09856404,165.81,165.8,0.2]
[1762210622604,10.09856404,165.81,165.8,0.92]
[1762210625192,6.03099933,165.81,165.8,0.92]
[1762210625398,6.03099933,165.81,165.8,0.2]
[1762210627106,7.9701875,165.82,165.8,0.2]
[1762210627309,9.78882769,165.81,165.8,0.2]
[1762210628412,15.81982702,165.81,165.8,0.2]
[1762210629584,58.11982702,165.81,165.8,0.2]
[1762210629792,62.19219532,165.81,165.8,0.2]
[1762210631205,19.89219532,165.81,165.8,0.2]
[1762210633392,24.97859203,165.81,165.8,0.2]
[1762210633711,10.10336763,165.81,165.8,0.92]
[1762210633884,6.03073088,165.82,165.8,0.92]
[1762210634080,4.06884466,165.81,165.8,0.2]
[1762210634711,4.06884466,165.81,165.8,0.92]
[1762210635308,10.09984399,165.81,165.8,0.92]
[1762210639707,4.06884466,165.81,165.8,0.92]
[1762210646202,5.08605582,165.85,165.82,20.592]
[1762210646514,5.08605582,165.85,165.8,16.74019077]
[1762210646515,5.08605582,165.91,165.84,0.14216157]
[1762210646892,5.08605582,165.91,165.85,0.72]
[1762210647196,5.08605582,165.95,165.89,20.592]
[1762210647416,5.08605582,165.94,165.89,20.592]
[1762210647602,0.67,165.96,165.9,0.72]
[1762210647806,6.69557196,165.96,165.9,0.72]
[1762210648013,0.67,165.96,165.9,0.72]
[1762210648234,6.69561664,165.96,165.9,0.72]
[1762210648824,6.69561664,165.96,165.9,6.7476249]
[1762210649318,6.69561664,165.96,165.91,0.68]
[1762210649816,0.67,165.95,165.91,0.68]
[1762210650036,6.69608641,165.95,165.91,0.68]
[1762210653107,6.71608641,165.95,165.91,0.68]
[1762210653920,0.69,165.96,165.91,6.70723431]
[1762210654427,0.1,166.03,165.96,0.14216157]
[1762210654811,0.79,166.03,165.97,0.69]
[1762210655323,0.1,166.03,165.98,9.93098926]
[1762210655536,0.1,166.03,165.98,0.14216157]
[1762210655713,0.1,166.03,166.0,0.14216157]
[1762210656030,0.1,166.03,166.01,6.71361809]
[1762210656236,0.1,166.03,166.02,0.69]
[1762210656404,0.1,166.03,165.96,0.14216157]
[1762210656609,0.1,166.03,166.01,0.69]
[1762210656826,0.1,166.03,165.99,20.592]
[1762210657137,0.1,166.03,166.0,0.69]
[1762210658411,0.1,166.03,166.0,6.7140527]
[1762210658615,0.1,166.03,166.01,0.69]
[1762210661431,0.69,166.02,165.97,21.282]
[1762210661634,0.69,166.02,165.97,0.69]
[1762210661927,0.69,166.02,165.98,0.69]
[1762210662139,0.1,166.03,165.98,0.69]
[1762210662428,0.79,166.03,165.98,0.69]
[1762210663324,0.1,166.03,165.99,6.0244593]
[1762210663732,0.79,166.03,166.0,0.69]
[1762210666324,0.1,166.03,166.0,0.69]
[1762210667543,0.1,166.03,166.0,6.71406277]
[1762210668020,0.1,166.03,166.01,0.69]
[1762210669530,0.1,166.03,165.98,6.16698383]
[1762210669726,0.1,166.03,165.98,6.85698383]
[1762210669925,0.1,166.03,165.99,0.69]
[1762210672342,0.1,166.03,165.99,6.71429932]
[1762210672527,0.1,166.03,166.0,0.69]
[1762210676722,0.1,166.03,166.0,6.71407072]
[1762210677144,0.1,166.03,166.01,0.69]
[1762210678220,0.69,166.02,165.99,6.0244593]
[1762210678741,0.79,166.03,165.99,6.0244593]
[1762210679034,0.79,166.03,166.0,0.69]
[1762210679237,0.1,166.03,166.0,0.69]
[1762210680337,4.1016476,166.03,166.0,0.69]
[1762210680643,0.1,166.03,166.0,0.69]
[1762210682153,4.1016476,166.03,166.0,0.69]
[1762210682722,4.8216476,166.03,166.0,0.69]
[1762210683018,4.1016476,166.03,166.0,0.69]
[1762210684230,4.0016476,166.02,166.0,0.69]
[1762210684741,4.0016476,166.02,166.0,6.71408909]
[1762210685355,4.01763967,166.01,166.0,6.71408909]
[1762210685553,4.01763967,166.02,166.0,0.71]
[1762210685763,4.01763967,166.01,166.0,0.71]
[1762210685942,4.01763967,166.02,166.0,0.71]
[1762210686143,4.01763967,166.01,166.0,0.71]
[1762210686543,4.01763967,166.01,166.0,6.73409638]
[1762210687636,4.01763967,166.01,166.0,0.71]
[1762210690069,4.01763967,166.01,165.97,6.02518527]
[1762210690233,4.01763967,166.0,165.98,0.71]
[1762210690433,4.01763967,165.99,165.98,0.71]
[1762210690634,4.01763967,165.99,165.98,27.32682226]
[1762210701672,4.01763967,165.99,165.98,27.46898383]
[1762210702254,0.1,166.03,165.99,0.14216157]
[1762210702472,0.1,166.03,166.01,9.93098926]
[1762210702685,0.1,166.03,166.02,0.71]
[1762210703373,0.1,166.03,166.02,6.73337067]
[1762210704264,0.1,166.03,166.02,27.32537067]
[1762210705097,0.1,166.03,166.02,6.73337067]
[1762210705279,0.1,166.04,166.03,20.73416157]
[1762210705576,0.1,166.04,166.03,21.44416157]
[1762210706690,0.1,166.04,166.03,27.46716946]
[1762210713476,1e-08,166.04,166.03,37.25599715]
[1762210713691,0.69,166.1,166.03,82.42855632]
[1762210713899,0.69,166.1,166.05,0.14216157]
[1762210714106,0.69,166.13,166.09,0.14216157]
[1762210714279,4.04799403,166.12,166.09,0.14216157]
[1762210714476,4.04799403,166.11,166.09,0.85216157]
[1762210715212,0.69,166.12,166.1,6.02046959]
[1762210715380,4.73799403,166.12,166.1,6.02046959]
[1762210715581,0.69,166.12,166.09,0.14216157]
[1762210715778,4.73799403,166.11,166.06,6.02160908]
[1762210715980,4.04799403,166.1,166.03,6.02293628]
[1762210716189,4.04799403,166.09,166.03,6.02293628]
[1762210716388,4.04799403,166.08,166.03,6.02293628]
[1762210716694,4.04799403,166.08,166.02,6.02332991]
[1762210716695,4.04799403,166.07,166.02,6.02332991]
[1762210716891,4.04799403,166.06,166.02,6.02332991]
[1762210717087,10.75996807,166.06,166.01,6.16589508]
[1762210717301,0.69,166.05,166.01,6.16589508]
[1762210717610,0.69,166.05,166.01,6.87589508]
[1762210717797,0.69,166.05,166.01,6.02373351]
[1762210718391,0.69,166.05,166.01,6.73373351]
[1762210719406,0.69,166.05,166.01,6.02373351]
[1762210720613,6.71234996,166.05,166.01,6.02373351]
[1762210720982,0.69,166.04,166.01,6.02373351]
[1762210721187,0.65823571,166.04,166.0,6.02399789]
[1762210722521,6.68097021,166.04,166.0,6.02399789]
[1762210722988,6.0227345,166.04,166.0,6.02399789]
[1762210723193,0.69,166.03,166.0,6.02399789]
[1762210723385,0.69,166.03,165.99,20.592]
[1762210723580,0.69,166.03,165.99,26.61632136]
[1762210724714,0.69,166.03,165.99,27.32632136]
[1762210724892,0.69,166.03,165.99,26.61632136]
[1762210724893,6.71310033,166.03,165.99,26.61632136]
[1762210725301,0.69,166.02,165.99,26.61632136]
[1762210725797,0.69,166.02,165.99,6.02432136]
[1762210726609,6.71338573,166.02,165.98,6.02470898]
[1762210726801,6.71338573,166.02,165.97,6.02512876]
[1762210727004,0.69,166.01,165.97,6.02512876]
[1762210727202,0.69,166.01,165.97,6.73512876]
[1762210727403,0.69,166.01,165.97,6.02512876]
[1762210727608,0.69,166.01,165.97,6.73512876]
[1762210727905,6.71378204,166.01,165.95,6.02559511]
[1762210728105,0.69,166.0,165.94,6.02614433]
[1762210728414,4.74017601,166.0,165.94,6.02614433]
[1762210728909,4.74017601,166.0,165.92,0.71]
[1762210728910,0.69,165.99,165.93,6.02657775]
[1762210730013,6.02482226,165.98,165.93,6.02657775]
[1762210730516,0.69,165.97,165.93,6.02657775]
[1762210732629,0.69,165.97,165.93,0.71]
[1762210735799,0.69,165.97,165.94,6.02627455]
[1762210740218,0.69,165.97,165.92,21.80450337]
[1762210740404,0.69,165.97,165.92,21.09450337]
[1762210740606,0.69,165.97,165.93,0.71]
[1762210741098,0.69,165.97,165.92,21.09450337]
[1762210741299,0.69,165.97,165.92,21.80450337]
[1762210744810,0.69,165.97,165.94,6.02627455]
[1762210746821,0.69,165.97,165.92,21.09450337]
[1762210747033,0.69,165.97,165.92,21.76450337]
[1762210747331,0.69,165.97,165.93,0.67]
[1762210747832,0.69,165.97,165.94,6.02627455]
[1762210750734,0.69,165.97,165.93,6.02663773]
[1762210751105,0.69,165.97,165.94,0.67]
[1762210751845,48.32440329,166.0,165.94,0.67]
[1762210752045,42.3,166.0,165.96,20.592]
[1762210752412,42.3,166.0,165.97,0.67]
[1762210752612,0.72,166.01,165.97,0.67]
[1762210752825,0.72,166.01,165.98,6.02482226]
[1762210753828,4.75919788,166.03,165.99,0.67]
[1762210754007,0.72,166.02,165.99,0.67]
[1762210754206,0.72,166.02,165.98,6.02482226]
[1762210754421,0.72,166.02,165.98,6.69482226]
[1762210755326,6.74339202,166.02,165.98,6.02482226]
[1762210755709,0.72,166.01,165.98,6.02482226]
[1762210757410,0.72,166.01,165.98,0.67]
[1762210758332,0.72,166.01,165.97,21.75814512]
[1762210758723,0.72,166.01,165.97,21.08814512]
[1762210759021,0.72,166.01,165.98,6.02448293]
[1762210759329,4.75919788,166.01,165.98,6.02448293]
[1762210759534,4.75919788,166.01,165.97,15.73295985]
[1762210759535,4.75919788,166.01,165.97,6.69508218]
[1762210759734,0.72,166.0,165.97,6.69508218]
[1762210760234,4.75919788,166.0,165.97,6.69508218]
[1762210760433,0.72,166.0,165.97,6.69508218]
[1762210760629,4.75919788,166.0,165.97,6.69508218]
[1762210760828,0.72,166.0,165.97,6.02508218]
[1762210761031,4.75919788,166.0,165.98,6.69449663]
[1762210761341,0.72,166.0,165.98,6.02449663]
[1762210761929,0.72,166.0,165.98,6.69449663]
[1762210762130,48.32307792,166.03,165.98,6.69449663]
[1762210762439,4.05561293,166.02,165.99,0.67]
[1762210762616,0.72,166.05,165.99,0.67]
[1762210762822,4.05521313,166.04,165.99,0.67]
[1762210763129,4.05521313,166.04,166.0,21.08433734]
[1762210763332,4.05478008,166.04,166.0,21.08433734]
[1762210763540,0.72,166.06,166.01,0.67]
[1762210763737,4.05462649,166.05,166.01,0.67]
[1762210764034,0.72,166.06,166.01,0.67]
[1762210764222,4.0546241,166.05,166.01,0.67]
[1762210764426,0.72,166.06,166.01,0.67]
[1762210764613,4.0545254,166.05,166.01,0.67]
[1762210764816,0.72,166.06,166.01,0.67]
[1762210765143,4.0545262,166.05,166.02,6.02337067]
[1762210765336,0.72,166.06,166.02,21.08179736]
[1762210765537,4.05433349,166.05,166.02,21.75179736]
[1762210765835,0.72,166.06,166.02,21.75179736]
[1762210766013,4.05433244,166.05,166.02,21.08179736]
[1762210766217,0.72,166.06,166.03,0.67]
[1762210766417,4.05400992,166.05,166.03,0.67]
[1762210766818,4.05400992,166.08,166.03,18.77446275]
[1762210767029,4.05400992,166.07,166.04,21.079258]
[1762210767233,4.05400992,166.06,166.05,0.67]
[1762210767435,4.05400992,166.08,166.05,0.67]
[1762210767623,0.72,166.09,166.05,0.67]
[1762210767837,4.05250879,166.08,166.05,0.67]
[1762210768041,0.71,166.11,166.05,18.77118562]
[1762210768228,4.05245667,166.1,166.06,0.14216157]
[1762210768429,0.71,166.11,166.06,0.14216157]
[1762210768430,4.05245667,166.09,166.06,0.86216157]
[1762210768629,4.05245667,166.08,166.07,5.06260112]
[1762210768932,4.05245667,166.1,166.07,5.06260112]
[1762210769143,4.05245667,166.09,166.08,6.7411946]
[1762210769841,4.05245667,166.12,166.08,21.79418111]
[1762210770042,4.05245667,166.11,166.09,0.72]
[1762210770244,4.05245667,166.1,166.09,0.72]
[1762210770435,4.04514981,166.12,166.09,0.72]
[1762210770634,4.04514981,166.11,166.09,0.72]
[1762210770947,0.1,166.14,166.09,0.72]
[1762210771137,4.04514455,166.13,166.1,6.02046959]
[1762210771743,4.75514455,166.13,166.1,6.74046959]
[1762210772448,0.71,166.13,166.1,6.74046959]
[1762210772829,4.14514455,166.14,166.1,6.74046959]
[1762210773025,4.83514455,166.14,166.11,0.68]
[1762210773331,0.69,166.13,166.09,6.02078707]
[1762210773529,4.73514455,166.13,166.09,6.02078707]
[1762210773731,0.69,166.12,166.09,6.02078707]
[1762210773925,4.73514455,166.13,166.1,0.68]
[1762210774247,0.69,166.13,166.1,0.68]
[1762210775127,0.69,166.13,166.1,6.70021288]
[1762210775644,0.69,166.13,166.1,6.02021288]
[1762210776050,0.69,166.13,166.09,6.02076589]
[1762210776540,0.69,166.13,166.09,6.70076589]
[1762210778055,0.69,166.13,166.08,6.11904423]
[1762210778056,6.7093952,166.13,166.08,6.02116938]
[1762210778350,9.73407211,166.13,166.07,6.02146247]
[1762210778555,0.69,166.12,166.07,6.02146247]
[1762210779250,0.69,166.12,166.05,21.85454761]
[1762210779251,6.71001294,166.12,166.06,6.02191978]
[1762210779442,6.71001294,166.12,166.06,6.70191978]
[1762210779751,0.69,166.11,166.06,6.70191978]
[1762210780243,0.69,166.11,166.07,6.70141725]
[1762210782355,0.69,166.11,166.06,6.02191978]
[1762210782758,0.69,166.11,166.06,6.70191978]
[1762210783869,6.71017553,166.11,166.05,6.02222519]
[1762210784037,10.47882769,166.1,166.02,6.02337067]
[1762210784366,3.02467691,166.09,166.02,6.02337067]
[1762210784532,7.75982146,166.09,166.01,6.7036038]
[1762210784738,0.69,166.08,166.01,6.7036038]
[1762210785348,4.73514455,166.08,166.0,6.02396293]
[1762210785653,4.04514455,166.07,166.0,6.70396293]
[1762210785865,6.02191978,166.06,166.0,6.70396293]
[1762210786036,10.75706433,166.06,166.0,6.70396293]
[1762210786238,0.69,166.05,166.0,6.70396293]
[1762210786555,0.69,166.05,166.0,6.02396293]
[1762210786747,4.73514455,166.05,165.99,26.61637135]
[1762210786934,0.69,166.05,165.99,27.29637135]
[1762210787136,0.69,166.04,165.99,26.61637135]
[1762210787549,0.69,166.04,165.99,27.29637135]
[1762210787745,6.71295019,166.04,165.99,26.61637135]
[1762210787949,6.71295019,166.04,165.99,20.592]
[1762210788146,0.69,166.03,165.99,20.592]
[1762210788361,0.69,166.03,165.99,27.29639724]
[1762210790655,6.02295019,166.04,165.99,26.61639724]
[1762210790861,0.69,166.04,166.0,0.68]
[1762210792258,6.7127752,166.04,166.0,0.68]
[1762210792564,6.7127752,166.04,165.99,26.61637361]
[1762210792765,0.69,166.03,165.99,26.61637361]
[1762210792967,0.69,166.03,165.99,27.29637361]
[1762210793464,6.71304761,166.03,165.99,6.02437361]
[1762210793964,0.69,166.02,165.99,6.70437361]
[1762210799174,0.69,166.02,165.99,0.68]
[1762210799869,0.69,166.02,165.99,6.70441844]
[1762210800065,4.04228255,166.03,165.99,6.70441844]
[1762210800066,0.69,166.03,165.99,6.70441844]
[1762210800283,0.69,166.02,165.99,6.70441844]
[1762210802473,0.69,166.02,165.99,0.7]
[1762210803458,0.69,166.02,165.99,6.72416383]
[1762210803670,0.69,166.02,165.99,6.02416383]
[1762210803869,0.69,166.02,165.99,6.72416383]
[1762210804071,4.70228255,166.03,165.99,6.72416383]
[1762210804273,0.66,166.02,165.99,6.72416383]
[1762210804873,4.04228255,166.03,165.97,21.08745932]
[1762210805082,4.70228255,166.03,166.0,0.7]
[1762210805379,4.70228255,166.03,165.98,0.7]
[1762210806077,0.66,166.02,165.99,6.0244593]
[1762210806469,0.66,166.02,165.99,6.7244593]
[1762210806780,4.0468125,166.03,165.99,6.0244593]
[1762210807084,0.66,166.03,165.99,6.7244593]
[1762210807265,0.66,166.02,165.99,6.7244593]
[1762210808986,0.66,166.03,166.0,0.7]
[1762210809165,4.04727081,166.02,166.0,0.7]
[1762210809479,0.66,166.03,166.0,6.72403244]
[1762210809783,4.04705862,166.02,166.0,6.72403244]
[1762210809983,0.66,166.03,166.0,6.72403244]
[1762210810286,4.04705862,166.02,166.0,6.72403244]
[1762210810460,0.66,166.03,166.0,6.72403244]
[1762210810659,4.04687591,166.02,166.0,6.72403244]
[1762210810877,0.66,166.03,166.0,6.72403244]
[1762210811086,4.04687487,166.02,166.0,6.72403244]
[1762210811259,0.66,166.03,166.0,6.72403244]
[1762210811458,4.04666885,166.02,165.97,21.08745932]
[1762210811672,0.66,166.03,165.98,0.7]
[1762210811986,4.04666964,166.02,165.98,0.7]
[1762210812185,0.66,166.03,165.98,0.7]
[1762210812485,4.04677127,166.02,165.99,6.0244593]
[1762210812866,4.04677127,166.02,166.0,0.7]
[1762210813383,0.66,166.03,166.0,0.7]
[1762210813772,0.66,166.03,166.0,6.72392532]
[1762210814180,4.04649486,166.02,166.0,6.72392532]
[1762210815284,0.66,166.03,166.0,6.72392532]
[1762210815475,4.04702618,166.02,166.0,6.02392532]
[1762210815682,0.66,166.03,166.0,6.72392532]
[1762210815872,4.04702618,166.02,166.0,6.72392532]
[1762210816067,0.66,166.03,166.0,6.72392532]
[1762210816267,4.04719539,166.02,166.0,6.72392532]
[1762210816563,0.66,166.03,166.0,6.72392532]
[1762210816761,0.66,166.03,165.96,6.02288093]
[1762210816762,10.07116495,166.02,165.96,6.02288093]
[1762210816975,12.13109336,166.01,165.89,6.0280909]
[1762210817174,12.8135046,165.98,165.9,18.11648902]
[1762210817392,12.8135046,165.96,165.89,6.0280909]
[1762210817597,4.04759318,165.95,165.88,6.02835894]
[1762210817788,4.04759318,165.94,165.88,6.02835894]
[1762210817965,4.04759318,165.93,165.88,6.72835894]
[1762210818165,4.04399237,165.92,165.85,6.02954476]
[1762210818367,9.78882769,165.91,165.85,6.02954476]
[1762210818669,20.52071906,165.91,165.85,6.72954476]
[1762210818869,4.70438122,165.9,165.85,6.72954476]
[1762210819090,0.66,165.9,165.85,6.72954476]
[1762210819303,0.66,165.89,165.85,6.72954476]
[1762210820205,0.66,165.89,165.85,0.7]
[1762210820703,0.66,165.89,165.84,0.9]
[1762210820999,0.66,165.89,165.84,6.92983218]
[1762210821577,6.68814151,165.89,165.84,6.22983218]
[1762210821775,6.68814151,165.89,165.84,6.92983218]
[1762210821776,0.66,165.89,165.84,6.92983218]
[1762210821986,0.66,165.88,165.84,0.2]
[1762210823084,9.78882769,165.87,165.84,0.2]
[1762210823387,0.66,165.86,165.84,0.2]
[1762210823801,10.71585967,165.86,165.84,0.2]
[1762210824176,0.66,165.85,165.84,0.2]
[1762210826378,6.68954476,165.85,165.84,0.2]
[1762210827296,0.66,165.85,165.84,0.2]
[1762210827794,6.68954476,165.85,165.84,0.2]
[1762210830312,0.66,165.85,165.84,0.2]
[1762210831689,6.68954476,165.85,165.84,0.2]
[1762210832212,0.66,165.85,165.84,0.2]
[1762210832894,6.68954476,165.85,165.84,0.2]
[1762210833206,0.66,165.85,165.84,0.2]
[1762210833411,6.68954476,165.85,165.84,0.2]
[1762210834699,0.66,165.85,165.84,0.2]
[1762210837112,16.47837245,165.85,165.84,0.2]
[1762210837498,20.48057521,165.85,165.84,0.2]
[1762210837701,22.41990426,165.85,165.84,0.2]
[1762210837887,27.6208891,165.85,165.84,0.2]
[1762210838088,9.93098926,165.83,165.82,0.2]
[1762210838298,9.93098926,165.81,165.8,0.2]
[1762210838497,9.93098926,165.81,165.78,0.2]
[1762210838498,9.78882769,165.8,165.78,0.2]
[1762210838714,21.90424795,165.79,165.78,0.2]
[1762210838912,22.59424795,165.79,165.78,0.2]
[1762210839531,30.38082769,165.76,165.68,0.69]
[1762210839821,36.3223595,165.76,165.68,0.69]
[1762210839990,37.0123595,165.76,165.68,0.69]
[1762210840307,38.95168855,165.76,165.68,0.69]
[1762210840617,30.38082769,165.72,165.67,0.2]
[1762210840802,42.35663418,165.72,165.67,0.2]
[1762210840988,43.18879575,165.72,165.67,0.2]
[1762210841190,47.96850732,165.72,165.67,0.2]
[1762210846417,32.36878514,165.72,165.67,0.2]
[1762210846822,52.23098926,165.71,165.67,0.2]